[Event "FIDE WCCC Girls-10 2024"]
[Site "Montesilvano"]
[Date "2024.11.18"]
[Round "4.1"]
[White "Filippova, Milana"]
[Black "Berikkyzy Alanna"]
[Result "0-1"]
[Annotator "RC"]
[ECO "B30"]
[WhiteElo "1687"]
[BlackElo "2043"]
[PlyCount "90"]
[EventDate "2024.11.18"]
[EventType "swiss"]
[EventCountry "ITA"]
[SourceTitle "playchess.com"]
[Source "ChessBase"]
[SourceQuality "1"]
[TimeControl "5400+30"]

1. e4 {[%emt 0:00:01]} c5 {[%emt 0:00:26]} 2. Nf3 {[%emt 0:00:05]} Nc6 {[%emt 0:00:27]} 3. Bb5 {[%emt 0:00:08]} Nf6 {[%emt 0:00:50]} 4. Nc3 {[%emt 0:00:52]} Qc7 {[%emt 0:00:37]} 5. O-O {[%emt 0:03:32]} e5 {[%emt 0:00:49]} 6. Nd5 {[%emt 0:07:21]} Nxd5 {[%emt 0:01:28]} 7. exd5 {[%emt 0:00:05]} Nd4 {[%emt 0:01:10]} 8. Nxd4 {[%emt 0:00:44]} cxd4 {[%emt 0:00:36]} 9. Re1 {[%emt 0:03:59]} Bd6 {[%emt 0:01:03]} 10. Bd3 {[%emt 0:07:44]} O-O {[%emt 0:01:15]} 11. g4 {[%emt 0:03:14]} Qd8 {[%emt 0:08:14]} 12. Qf3 {[%emt 0:02:38]} Qg5 {[%emt 0:06:00]} 13. Kh1 {[%emt 0:02:27]} Qh4 {[%emt 0:11:58]} 14. Qg3 {[%emt 0:01:47]} Qxg3 {[%emt 0:01:26]} 15. hxg3 {[%emt 0:00:26]} b6 {[%emt 0:01:27]} 16. Kg2 {[%emt 0:01:35]} Bb7 {[%emt 0:00:17]} 17. Be4 {[%emt 0:00:06]} Rac8 {[%emt 0:01:01]} 18. c3 {[%emt 0:04:02]} Rfe8 {[%emt 0:08:27]} 19. b3 {[%emt 0:07:06]} dxc3 {[%emt 0:00:59]} 20. dxc3 {[%emt 0:00:07]} Rxc3 {[%emt 0:01:09]} 21. Bb2 {[%emt 0:01:01]} Rcc8 {[%emt 0:00:32]} 22. Rac1 {[%emt 0:04:08]} g6 {[%emt 0:02:31]} 23. g5 {[%emt 0:03:38]} Bb4 {[%emt 0:06:10]} 24. Red1 {[%emt 0:02:17]} Be7 {[%emt 0:04:10]} 25. Rxc8 {[%emt 0:01:51]} Rxc8 {[%emt 0:01:03]} 26. Bxe5 {[%emt 0:00:36]} Bxg5 {[%emt 0:00:06]} 27. g4 {[%emt 0:02:32]} Re8 {[%emt 0:00:57]} 28. f4 {[%emt 0:00:36]} Bxf4 {[%emt 0:02:09]} 29. Bxf4 {[%emt 0:00:13]} Rxe4 {[%emt 0:00:06]} 30. Kf3 {[%emt 0:00:20]} Re8 {[%emt 0:00:32]} 31. g5 {[%emt 0:01:39]} f6 {[%emt 0:01:50]} 32. gxf6 {[%emt 0:39:40]} Kf7 {[%emt 0:00:19]} 33. Kg4 {[%emt 0:00:00]} Kxf6 {[%emt 0:00:19]} 34. Bg5+ {[%emt 0:00:00]} Kg7 {[%emt 0:00:19]} 35. Rd2 {[%emt 0:00:00]} h6 {[%emt 0:01:22]} 36. Bh4 {[%emt 0:00:00]} g5 {[%emt 0:00:30]} 37. Bf2 {[%emt 0:00:00]} Kg6 {[%emt 0:00:05]} 38. d6 {[%emt 0:00:00]} h5+ {[%emt 0:00:07]} 39. Kh3 {[%emt 0:00:00]} h4 {[%emt 0:00:39]} 40. Rc2 {[%emt 0:00:00]} Kh5 {[%emt 0:00:18]} 41. Rc7 {[%emt 0:00:00]} g4+ {[%emt 0:00:06]} 42. Kh2 {[%emt 0:00:00]} Bc6 {[%emt 0:00:06]} 43. Rxa7 {[%emt 0:00:00]} Re2 {[%emt 0:00:37]} 44. Kg1 {[%emt 0:00:00]} g3 {[%emt 0:00:12]} 45. Bxb6 {[%emt 0:00:00]} Re1# {[%emt 0:00:07]} 0-1

[Event "FIDE WCCC Girls-10 2024"]
[Site "Montesilvano"]
[Date "2024.11.18"]
[Round "4.2"]
[White "Wang, Yi Xuan"]
[Black "Yang, Aimee"]
[Result "0-1"]
[Annotator "NA RC"]
[ECO "D80"]
[WhiteElo "1668"]
[BlackElo "1864"]
[PlyCount "100"]
[EventDate "2024.11.18"]
[EventType "swiss"]
[EventCountry "ITA"]
[SourceTitle "playchess.com"]
[Source "ChessBase"]
[SourceQuality "1"]
[TimeControl "5400+30"]

1. d4 {[%emt 0:00:15]} Nf6 {[%emt 0:00:06]} 2. c4 {[%emt 0:00:27]} g6 {[%emt 0:00:06]} 3. Nc3 {[%emt 0:00:18]} d5 {[%emt 0:00:07]} 4. h4 {[%emt 0:00:47]} h5 {[%emt 0:00:46]} 5. Bg5 {[%emt 0:05:42]} Bg7 {[%emt 0:00:59]} 6. Nf3 {[%emt 0:02:44]} c6 {[%emt 0:02:55]} 7. e3 {[%emt 0:07:37]} Nbd7 {[%emt 0:00:53]} 8. Bd3 {[%emt 0:10:46]} dxc4 {[%emt 0:01:53]} 9. Bxc4 {[%emt 0:00:24]} b5 {[%emt 0:00:11]} 10. Bd3 {[%emt 0:01:28]} O-O {[%emt 0:01:10]} 11. O-O {[%emt 0:00:49]} Qb6 {[%emt 0:02:51]} 12. Rc1 {[%emt 0:02:13]} a6 {[%emt 0:03:05]} 13. e4 {[%emt 0:04:36]} e5 {[%emt 0:01:31]} 14. dxe5 {[%emt 0:06:48]} Ng4 {[%emt 0:00:42]} 15. Be2 {[%emt 0:07:38]} Ndxe5 {[%emt 0:03:08]} 16. Nxe5 {[%emt 0:03:26]} Bxe5 {[%emt 0:00:22]} 17. Bxg4 {[%emt 0:02:07]} Bxg4 {[%emt 0:00:12]} 18. Qb3 {[%emt 0:01:35]} a5 {[%emt 0:05:42]} 19. Na4 {[%emt 0:04:02]} Qd4 {[%emt 0:01:48]} 20. Nc5 {[%emt 0:05:34]} Qxb2 {[%emt 0:01:51]} 21. Qxb2 {[%emt 0:01:12]} Bxb2 {[%emt 0:00:03]} 22. Rc2 {[%emt 0:00:23]} Bg7 {[%emt 0:02:37]} 23. f3 {[%emt 0:02:05]} Bc8 {[%emt 0:02:34]} 24. Rd1 {[%emt 0:01:33]} Be5 {[%emt 0:11:43]} 25. Bh6 {[%emt 0:00:54]} Re8 {[%emt 0:00:28]} 26. f4 {[%emt 0:02:18]} Bg4 {[%emt 0:00:55]} 27. Rdd2 {[%emt 0:01:56]} Bf6 {[%emt 0:05:57]} 28. g3 {[%emt 0:03:54]} Rad8 {[%emt 0:03:12]} 29. e5 {[%emt 0:04:07]} Be7 {[%emt 0:01:16]} 30. Rxd8 {[%emt 0:01:35]} Rxd8 {[%emt 0:01:31]} 31. Nb7 {[%emt 0:00:31]} Rd1+ {[%emt 0:00:32]} 32. Kg2 {[%emt 0:00:19]} Bf5 {[%emt 0:01:01]} 33. Re2 {[%emt 0:02:24]} a4 {[%emt 0:02:03]} 34. Bg5 {[%emt 0:00:57]} Bf8 {[%emt 0:00:57]} 35. Bf6 {[%emt 0:00:35]} c5 {[%emt 0:01:05]} 36. Nd6 {[%emt 0:00:55]} Bd3 {[%emt 0:00:08]} 37. Re3 {[%emt 0:00:45]} Rd2+ {[%emt 0:01:14]} 38. Kg1 {[%emt 0:00:52]} Bb1 {[%emt 0:01:58]} 39. Nxb5 {[%emt 0:00:47]} Bxa2 {[%emt 0:00:19]} 40. Nc3 {[%emt 0:00:17]} Bb3 {[%emt 0:00:44]} 41. Re4 {[%emt 0:01:05]} a3 {[%emt 0:00:38]} 42. Re1 {[%emt 0:00:42]} Rc2 {[%emt 0:00:41]} 43. Nb1 {[%emt 0:01:09]} a2 {[%emt 0:00:34]} 44. Na3 {[%emt 0:00:10]} Re2 {[%emt 0:00:55]} 45. Ra1 {[%emt 0:00:57]} Bg7 {[%emt 0:00:38]} 46. Bg5 {[%emt 0:02:46]} Rd2 {[%emt 0:00:24]} 47. f5 {[%emt 0:03:18]} Rd1+ {[%emt 0:00:20]} 48. Kf2 {[%emt 0:00:46]} Rxa1 {[%emt 0:00:08]} 49. e6 {[%emt 0:00:13]} fxe6 {[%emt 0:00:17]} 50. fxe6 {[%emt 0:00:09]} Rf1+ {[%emt 0:00:18]} 0-1

[Event "FIDE WCCC Girls-10 2024"]
[Site "Montesilvano"]
[Date "2024.11.18"]
[Round "4.3"]
[White "Cetin, Beren"]
[Black "Nandinjiguur, Chinzorig"]
[Result "1/2-1/2"]
[Annotator "NA RC"]
[ECO "C55"]
[WhiteElo "1658"]
[BlackElo "1807"]
[PlyCount "107"]
[EventDate "2024.11.18"]
[EventType "swiss"]
[EventCountry "ITA"]
[SourceTitle "playchess.com"]
[Source "ChessBase"]
[SourceQuality "1"]
[TimeControl "5400+30"]

1. e4 {[%emt 0:00:03]} e5 {[%emt 0:00:10]} 2. Nf3 {[%emt 0:00:07]} Nc6 {[%emt 0:00:10]} 3. Bc4 {[%emt 0:00:08]} Nf6 {[%emt 0:00:10]} 4. d3 {[%emt 0:00:16]} Be7 {[%emt 0:00:35]} 5. c3 {[%emt 0:00:13]} O-O {[%emt 0:00:19]} 6. Nbd2 {[%emt 0:00:08]} d6 {[%emt 0:01:13]} 7. Qe2 {[%emt 0:02:22]} Na5 {[%emt 0:01:09]} 8. Bb5 {[%emt 0:01:45]} a6 {[%emt 0:00:25]} 9. Ba4 {[%emt 0:00:07]} b5 {[%emt 0:00:07]} 10. Bc2 {[%emt 0:00:07]} c5 {[%emt 0:00:09]} 11. d4 {[%emt 0:01:53]} Qc7 {[%emt 0:03:15]} 12. dxe5 {[%emt 0:05:18]} dxe5 {[%emt 0:00:13]} 13. O-O {[%emt 0:00:27]} Be6 {[%emt 0:01:25]} 14. Rd1 {[%emt 0:02:05]} Nc4 {[%emt 0:03:56]} 15. Nf1 {[%emt 0:06:30]} Nh5 {[%emt 0:09:05]} 16. b3 {[%emt 0:00:34]} Na5 {[%emt 0:00:24]} 17. Ng5 {[%emt 0:07:27]} Nf4 {[%emt 0:04:55]} 18. Bxf4 {[%emt 0:02:54]} exf4 {[%emt 0:00:10]} 19. Qh5 {[%emt 0:07:36]} Bxg5 {[%emt 0:03:43]} 20. Qxg5 {[%emt 0:00:10]} f6 {[%emt 0:01:59]} 21. Qh5 {[%emt 0:02:31]} Bf7 {[%emt 0:03:45]} 22. Qh3 {[%emt 0:01:21]} Qe5 {[%emt 0:01:21]} 23. Nd2 {[%emt 0:06:55]} Be6 {[%emt 0:01:20]} 24. Qh4 {[%emt 0:01:31]} Qxc3 {[%emt 0:05:22]} 25. Rac1 {[%emt 0:02:30]} Rfd8 {[%emt 0:20:18]} 26. Qxf4 {[%emt 0:13:51]} g5 {[%emt 0:01:00]} 27. Qf3 {[%emt 0:01:29]} Qxf3 {[%emt 0:05:18]} 28. Nxf3 {[%emt 0:00:46]} Bg4 {[%emt 0:01:20]} 29. Rd5 {[%emt 0:01:12]} Nb7 {[%emt 0:03:15]} 30. Rcd1 {[%emt 0:02:36]} Be6 {[%emt 0:00:35]} 31. Rxd8+ {[%emt 0:00:48]} Rxd8 {[%emt 0:00:10]} 32. Rxd8+ {[%emt 0:00:04]} Nxd8 {[%emt 0:00:12]} 33. e5 {[%emt 0:00:28]} g4 {[%emt 0:01:15]} 34. Ne1 {[%emt 0:01:00]} fxe5 {[%emt 0:00:39]} 35. f3 {[%emt 0:01:07]} Nc6 {[%emt 0:02:40]} 36. Nd3 {[%emt 0:07:46]} c4 {[%emt 0:03:28]} 37. Nc5 {[%emt 0:06:46]} cxb3 {[%emt 0:02:36]} 38. Bxb3 {[%emt 0:03:40]} Bxb3 {[%emt 0:00:45]} 39. axb3 {[%emt 0:00:31]} gxf3 {[%emt 0:00:21]} 40. Nxa6 {[%emt 0:01:14]} fxg2 {[%emt 0:00:24]} 41. Kxg2 {[%emt 0:00:54]} Nd4 {[%emt 0:00:29]} 42. Nc7 {[%emt 0:03:26]} Kf7 {[%emt 0:02:33]} 43. Kf2 {[%emt 0:02:10]} Kf6 {[%emt 0:01:48]} 44. Ke3 {[%emt 0:00:39]} Kf5 {[%emt 0:00:19]} 45. Ne8 {[%emt 0:05:17]} h5 {[%emt 0:05:34]} 46. Nc7 {[%emt 0:01:17]} h4 {[%emt 0:03:42]} 47. h3 {[%emt 0:00:40]} Nxb3 {[%emt 0:03:15]} 48. Nxb5 {[%emt 0:00:04]} Nc5 {[%emt 0:00:09]} 49. Nd6+ {[%emt 0:00:10]} Ke6 {[%emt 0:01:02]} 50. Nc4 {[%emt 0:00:14]} Nd7 {[%emt 0:01:45]} 51. Nd2 {[%emt 0:02:53]} Nf6 {[%emt 0:00:37]} 52. Nf3 {[%emt 0:00:00]} Nd5+ {[%emt 0:00:17]} 53. Ke4 {[%emt 0:00:00]} Nf6+ {[%emt 0:01:36]} 54. Ke3 {[%emt 0:00:00]} 1/2-1/2

[Event "FIDE WCCC Girls-10 2024"]
[Site "Montesilvano"]
[Date "2024.11.18"]
[Round "4.4"]
[White "Sholpanbek, Zhansaya"]
[Black "Peng, Jingyi(Gd)"]
[Result "1/2-1/2"]
[Annotator "NA RC"]
[ECO "B31"]
[WhiteElo "1657"]
[BlackElo "1720"]
[PlyCount "161"]
[EventDate "2024.11.18"]
[EventType "swiss"]
[EventCountry "ITA"]
[SourceTitle "playchess.com"]
[Source "ChessBase"]
[SourceQuality "1"]
[TimeControl "5400+30"]

1. e4 {[%emt 0:00:09]} c5 {[%emt 0:00:03]} 2. Nf3 {[%emt 0:00:10]} Nc6 {[%emt 0:00:04]} 3. Bb5 {[%emt 0:00:21]} g6 {[%emt 0:00:05]} 4. O-O {[%emt 0:01:09]} Bg7 {[%emt 0:00:04]} 5. Re1 {[%emt 0:01:16]} e5 {[%emt 0:00:18]} 6. c3 {[%emt 0:04:19]} Nge7 {[%emt 0:00:04]} 7. Na3 {[%emt 0:00:33]} a6 {[%emt 0:00:44]} 8. Bf1 {[%emt 0:00:48]} b5 {[%emt 0:00:15]} 9. Nc2 {[%emt 0:00:43]} d6 {[%emt 0:05:54]} 10. d4 {[%emt 0:01:08]} O-O {[%emt 0:06:35]} 11. dxc5 {[%emt 0:13:17]} dxc5 {[%emt 0:00:05]} 12. Be3 {[%emt 0:00:04]} c4 {[%emt 0:00:23]} 13. a4 {[%emt 0:00:48]} Bb7 {[%emt 0:09:25]} 14. Na3 {[%emt 0:05:28]} Qb8 {[%emt 0:30:54]} 15. axb5 {[%emt 0:07:21]} axb5 {[%emt 0:00:35]} 16. Nxb5 {[%emt 0:01:17]} Rd8 {[%emt 0:08:53]} 17. Qc2 {[%emt 0:00:53]} Na5 {[%emt 0:09:03]} 18. Na3 {[%emt 0:20:43]} Rc8 {[%emt 0:09:19]} 19. Rad1 {[%emt 0:02:04]} Bc6 {[%emt 0:02:10]} 20. Nd2 {[%emt 0:08:17]} Bb5 {[%emt 0:11:13]} 21. Nxb5 {[%emt 0:02:18]} Qxb5 {[%emt 0:00:03]} 22. Ra1 {[%emt 0:00:21]} Rab8 {[%emt 0:04:44]} 23. Qa4 {[%emt 0:02:35]} Nb3 {[%emt 0:00:36]} 24. Qxb5 {[%emt 0:02:02]} Rxb5 {[%emt 0:00:03]} 25. Bxc4 {[%emt 0:00:30]} Nxa1 {[%emt 0:01:28]} 26. Bxb5 {[%emt 0:00:08]} Nc2 {[%emt 0:00:00]} 27. Re2 {[%emt 0:00:35]} Nxe3 {[%emt 0:00:00]} 28. Rxe3 {[%emt 0:00:08]} Rb8 {[%emt 0:00:53]} 29. c4 {[%emt 0:00:15]} Rd8 {[%emt 0:00:10]} 30. Nf3 {[%emt 0:01:10]} f5 {[%emt 0:00:15]} 31. Kf1 {[%emt 0:00:47]} Rd1+ {[%emt 0:01:02]} 32. Re1 {[%emt 0:00:41]} Rxe1+ {[%emt 0:00:33]} 33. Kxe1 {[%emt 0:00:22]} fxe4 {[%emt 0:00:04]} 34. Nd2 {[%emt 0:00:32]} e3 {[%emt 0:00:23]} 35. fxe3 {[%emt 0:00:04]} e4 {[%emt 0:00:03]} 36. b3 {[%emt 0:00:26]} Nf5 {[%emt 0:00:16]} 37. Nxe4 {[%emt 0:00:34]} Nxe3 {[%emt 0:00:07]} 38. Kf2 {[%emt 0:01:12]} Bd4 {[%emt 0:00:27]} 39. Kf3 {[%emt 0:00:26]} Nc2 {[%emt 0:00:20]} 40. c5 {[%emt 0:01:07]} Be5 {[%emt 0:01:50]} 41. Bc4+ {[%emt 0:00:51]} Kf8 {[%emt 0:00:28]} 42. Ng5 {[%emt 0:01:27]} h6 {[%emt 0:00:41]} 43. Ne6+ {[%emt 0:00:17]} Ke7 {[%emt 0:00:09]} 44. c6 {[%emt 0:09:02]} Nd4+ {[%emt 0:01:11]} 45. Nxd4 {[%emt 0:00:06]} Bxd4 {[%emt 0:00:05]} 46. b4 {[%emt 0:00:12]} Bb6 {[%emt 0:00:05]} 47. Ke4 {[%emt 0:00:08]} Kd6 {[%emt 0:00:06]} 48. b5 {[%emt 0:00:23]} Kc5 {[%emt 0:00:12]} 49. Bd3 {[%emt 0:15:33]} Bc7 {[%emt 0:00:05]} 50. h3 {[%emt 0:00:00]} h5 {[%emt 0:00:38]} 51. Kf3 {[%emt 0:00:00]} g5 {[%emt 0:00:07]} 52. g3 {[%emt 0:00:00]} h4 {[%emt 0:00:12]} 53. gxh4 {[%emt 0:00:00]} gxh4 {[%emt 0:00:04]} 54. Kg4 {[%emt 0:00:00]} Bg3 {[%emt 0:00:07]} 55. c7 {[%emt 0:00:00]} Bxc7 {[%emt 0:00:03]} 56. Kxh4 {[%emt 0:00:00]} Kd4 {[%emt 0:00:56]} 57. Bf1 {[%emt 0:00:00]} Ke5 {[%emt 0:00:04]} 58. Kg5 {[%emt 0:00:00]} Bd8+ {[%emt 0:00:05]} 59. Kg6 {[%emt 0:00:00]} Kf4 {[%emt 0:00:06]} 60. Kf7 {[%emt 0:00:00]} Kg5 {[%emt 0:00:09]} 61. Bd3 {[%emt 0:00:00]} Kh6 {[%emt 0:00:15]} 62. Ke8 {[%emt 0:00:00]} Bb6 {[%emt 0:00:06]} 63. Kf7 {[%emt 0:00:00]} Bd8 {[%emt 0:00:09]} 64. Bg6 {[%emt 0:00:00]} Bb6 {[%emt 0:00:17]} 65. h4 {[%emt 0:00:00]} Bd8 {[%emt 0:00:15]} 66. h5 {[%emt 0:00:00]} Bb6 {[%emt 0:00:12]} 67. Ke8 {[%emt 0:00:00]} Kg7 {[%emt 0:00:08]} 68. Kd7 {[%emt 0:00:00]} Kh8 {[%emt 0:00:07]} 69. Kc6 {[%emt 0:00:00]} Bf2 {[%emt 0:00:04]} 70. b6 {[%emt 0:00:00]} Bg3 {[%emt 0:00:04]} 71. b7 {[%emt 0:00:00]} Bb8 {[%emt 0:00:03]} 72. Kd7 {[%emt 0:00:00]} Be5 {[%emt 0:00:06]} 73. Kc8 {[%emt 0:12:00]} Bf4 {[%emt 0:00:07]} 74. b8=Q {[%emt 0:00:00]} Bxb8 {[%emt 0:00:02]} 75. Kxb8 {[%emt 0:00:00]} Kg7 {[%emt 0:00:05]} 76. Kc7 {[%emt 0:00:00]} Kh8 {[%emt 0:00:05]} 77. Kd7 {[%emt 0:00:00]} Kg8 {[%emt 0:00:04]} 78. Ke6 {[%emt 0:00:00]} Kh8 {[%emt 0:00:26]} 79. h6 {[%emt 0:00:00]} Kg8 {[%emt 0:00:03]} 80. Kf6 {[%emt 0:00:00]} Kh8 {[%emt 0:00:03]} 81. h7 {[%emt 0:00:00]} 1/2-1/2

[Event "FIDE WCCC Girls-10 2024"]
[Site "Montesilvano"]
[Date "2024.11.18"]
[Round "4.5"]
[White "Nguyen Doan, Bao Anh Angelina"]
[Black "Tselmuun, Ider"]
[Result "1/2-1/2"]
[Annotator "NA RC"]
[ECO "C12"]
[WhiteElo "1628"]
[BlackElo "1846"]
[PlyCount "87"]
[EventDate "2024.11.18"]
[EventType "swiss"]
[EventCountry "ITA"]
[SourceTitle "playchess.com"]
[Source "ChessBase"]
[SourceQuality "1"]
[TimeControl "5400+30"]

1. e4 {[%emt 0:00:01]} e6 {[%emt 0:00:23]} 2. d4 {[%emt 0:00:04]} d5 {[%emt 0:00:11]} 3. Nc3 {[%emt 0:00:06]} Nf6 {[%emt 0:00:20]} 4. Bg5 {[%emt 0:00:20]} Bb4 {[%emt 0:00:28]} 5. e5 {[%emt 0:04:38]} h6 {[%emt 0:00:12]} 6. Bd2 {[%emt 0:08:23]} Bxc3 {[%emt 0:00:42]} 7. Bxc3 {[%emt 0:02:01]} Ne4 {[%emt 0:02:28]} 8. Ne2 {[%emt 0:04:45]} Nxc3 {[%emt 0:03:26]} 9. Nxc3 {[%emt 0:00:17]} O-O {[%emt 0:01:16]} 10. Qd2 {[%emt 0:05:16]} c5 {[%emt 0:00:47]} 11. O-O-O {[%emt 0:03:18]} Nc6 {[%emt 0:01:54]} 12. Ne2 {[%emt 0:03:48]} cxd4 {[%emt 0:00:27]} 13. f4 {[%emt 0:00:56]} Bd7 {[%emt 0:05:10]} 14. Nxd4 {[%emt 0:01:56]} Nxd4 {[%emt 0:00:12]} 15. Qxd4 {[%emt 0:00:05]} Qa5 {[%emt 0:00:07]} 16. Kb1 {[%emt 0:02:27]} Rac8 {[%emt 0:01:00]} 17. g4 {[%emt 0:07:50]} Ba4 {[%emt 0:13:24]} 18. Bd3 {[%emt 0:04:29]} Bb5 {[%emt 0:03:36]} 19. Bxb5 {[%emt 0:07:43]} Qxb5 {[%emt 0:00:07]} 20. h4 {[%emt 0:04:24]} Rc4 {[%emt 0:00:30]} 21. Qd2 {[%emt 0:02:07]} Rfc8 {[%emt 0:00:13]} 22. Rc1 {[%emt 0:03:52]} Rb4 {[%emt 0:09:26]} 23. c3 {[%emt 0:03:47]} Re4 {[%emt 0:04:06]} 24. Rce1 {[%emt 0:07:31]} Rcc4 {[%emt 0:02:31]} 25. Rhf1 {[%emt 0:03:22]} Rxe1+ {[%emt 0:03:12]} 26. Rxe1 {[%emt 0:01:50]} Re4 {[%emt 0:07:56]} 27. g5 {[%emt 0:10:15]} hxg5 {[%emt 0:06:46]} 28. hxg5 {[%emt 0:02:03]} Rxe1+ {[%emt 0:01:03]} 29. Qxe1 {[%emt 0:00:05]} Qd3+ {[%emt 0:00:06]} 30. Kc1 {[%emt 0:02:34]} Qc4 {[%emt 0:00:43]} 31. Qh4 {[%emt 0:03:27]} Qxa2 {[%emt 0:10:51]} 32. g6 {[%emt 0:01:11]} Qa1+ {[%emt 0:00:03]} 33. Kc2 {[%emt 0:00:12]} Qa4+ {[%emt 0:00:28]} 34. Kd2 {[%emt 0:00:37]} fxg6 {[%emt 0:00:31]} 35. Qd8+ {[%emt 0:00:32]} Kf7 {[%emt 0:00:07]} 36. Qc7+ {[%emt 0:00:31]} Kf8 {[%emt 0:00:38]} 37. Qd6+ {[%emt 0:00:42]} Kf7 {[%emt 0:00:41]} 38. Qc7+ {[%emt 0:00:13]} Ke8 {[%emt 0:02:05]} 39. Qb8+ {[%emt 0:01:12]} Ke7 {[%emt 0:02:18]} 40. Qd6+ {[%emt 0:00:26]} Kf7 {[%emt 0:04:38]} 41. Qc7+ {[%emt 0:00:14]} Ke8 {[%emt 0:02:02]} 42. Qb8+ {[%emt 0:00:17]} Kf7 {[%emt 0:00:08]} 43. Qc7+ {[%emt 0:00:08]} Kg8 {[%emt 0:00:28]} 44. Qd8+ {[%emt 0:00:14]} 1/2-1/2

[Event "FIDE WCCC Girls-10 2024"]
[Site "Montesilvano"]
[Date "2024.11.18"]
[Round "4.6"]
[White "Anistoroaei, Maria"]
[Black "Mukhorina, Mariya Dm"]
[Result "1-0"]
[Annotator "NA RC"]
[ECO "E71"]
[WhiteElo "1715"]
[BlackElo "1567"]
[PlyCount "125"]
[EventDate "2024.11.18"]
[EventType "swiss"]
[EventCountry "ITA"]
[SourceTitle "playchess.com"]
[Source "ChessBase"]
[SourceQuality "1"]
[TimeControl "5400+30"]

1. c4 {[%emt 0:00:04]} Nf6 {[%emt 0:00:19]} 2. Nc3 {[%emt 0:00:38]} g6 {[%emt 0:00:20]} 3. d4 {[%emt 0:00:17]} Bg7 {[%emt 0:00:25]} 4. e4 {[%emt 0:00:14]} d6 {[%emt 0:00:04]} 5. h3 {[%emt 0:00:11]} O-O {[%emt 0:00:41]} 6. Bg5 {[%emt 0:00:06]} Nbd7 {[%emt 0:04:56]} 7. Bd3 {[%emt 0:00:35]} c5 {[%emt 0:04:31]} 8. d5 {[%emt 0:00:21]} h6 {[%emt 0:08:00]} 9. Be3 {[%emt 0:00:40]} Ne8 {[%emt 0:06:27]} 10. Qd2 {[%emt 0:01:51]} Kh7 {[%emt 0:03:14]} 11. g4 {[%emt 0:02:42]} Ne5 {[%emt 0:02:36]} 12. Be2 {[%emt 0:01:42]} e6 {[%emt 0:17:10]} 13. f4 {[%emt 0:04:07]} exd5 {[%emt 0:06:58]} 14. exd5 {[%emt 0:02:00]} Nd7 {[%emt 0:03:03]} 15. Nf3 {[%emt 0:01:34]} Nc7 {[%emt 0:03:04]} 16. O-O {[%emt 0:04:42]} Re8 {[%emt 0:05:34]} 17. Bd3 {[%emt 0:03:26]} Nb6 {[%emt 0:04:09]} 18. Kh2 {[%emt 0:03:27]} Bd7 {[%emt 0:06:58]} 19. Rg1 {[%emt 0:04:06]} Na4 {[%emt 0:02:19]} 20. Nxa4 {[%emt 0:08:31]} Bxa4 {[%emt 0:00:01]} 21. Rae1 {[%emt 0:00:34]} Bd7 {[%emt 0:01:31]} 22. Qc2 {[%emt 0:14:43]} Qf6 {[%emt 0:08:00]} 23. f5 {[%emt 0:07:41]} Kh8 {[%emt 0:01:55]} 24. Rg2 {[%emt 0:06:06]} Rxe3 {[%emt 0:05:12]} 25. Rxe3 {[%emt 0:00:36]} g5 {[%emt 0:00:16]} 26. a3 {[%emt 0:05:08]} b5 {[%emt 0:00:35]} 27. b4 {[%emt 0:01:45]} cxb4 {[%emt 0:01:19]} 28. axb4 {[%emt 0:00:27]} a5 {[%emt 0:00:21]} 29. Rge2 {[%emt 0:03:41]} a4 {[%emt 0:00:45]} 30. Qa2 {[%emt 0:02:43]} Na6 {[%emt 0:02:06]} 31. Qa3 {[%emt 0:07:57]} Qc3 {[%emt 0:00:59]} 32. Qxc3 {[%emt 0:02:29]} Bxc3 {[%emt 0:00:01]} 33. cxb5 {[%emt 0:01:44]} Nxb4 {[%emt 0:00:02]} 34. Bc4 {[%emt 0:00:38]} Bf6 {[%emt 0:00:14]} 35. Ra3 {[%emt 0:01:36]} Rc8 {[%emt 0:00:54]} 36. Rxa4 {[%emt 0:03:01]} Rxc4 {[%emt 0:00:12]} 37. Ra8+ {[%emt 0:00:20]} Kg7 {[%emt 0:00:11]} 38. b6 {[%emt 0:00:31]} Nxd5 {[%emt 0:02:15]} 39. b7 {[%emt 0:00:32]} Rb4 {[%emt 0:00:08]} 40. b8=Q {[%emt 0:00:33]} Rxb8 {[%emt 0:00:01]} 41. Rxb8 {[%emt 0:00:02]} Nf4 {[%emt 0:00:13]} 42. Ra2 {[%emt 0:00:47]} Bc6 {[%emt 0:00:13]} 43. Kg3 {[%emt 0:01:59]} h5 {[%emt 0:00:40]} 44. gxh5 {[%emt 0:01:14]} Nxh5+ {[%emt 0:00:14]} 45. Kg4 {[%emt 0:01:22]} Kh6 {[%emt 0:01:08]} 46. Rc2 {[%emt 0:00:48]} Be4 {[%emt 0:00:28]} 47. Rcc8 {[%emt 0:02:10]} d5 {[%emt 0:01:16]} 48. Rh8+ {[%emt 0:00:39]} Bxh8 {[%emt 0:00:00]} 49. Rxh8+ {[%emt 0:00:02]} Kg7 {[%emt 0:00:01]} 50. Rxh5 {[%emt 0:00:26]} f6 {[%emt 0:00:22]} 51. h4 {[%emt 0:00:45]} Bc2 {[%emt 0:01:51]} 52. hxg5 {[%emt 0:00:26]} fxg5 {[%emt 0:00:01]} 53. Kxg5 {[%emt 0:00:58]} Bd1 {[%emt 0:00:11]} 54. Rh3 {[%emt 0:00:09]} Kf7 {[%emt 0:00:30]} 55. Ne5+ {[%emt 0:00:56]} Ke7 {[%emt 0:00:28]} 56. Rh6 {[%emt 0:00:27]} d4 {[%emt 0:00:15]} 57. Re6+ {[%emt 0:00:15]} Kf8 {[%emt 0:00:08]} 58. Kf6 {[%emt 0:00:20]} Bh5 {[%emt 0:00:14]} 59. Ng6+ {[%emt 0:00:25]} Bxg6 {[%emt 0:00:01]} 60. fxg6 {[%emt 0:00:10]} d3 {[%emt 0:00:07]} 61. g7+ {[%emt 0:00:10]} Kg8 {[%emt 0:00:02]} 62. Re8+ {[%emt 0:00:07]} Kh7 {[%emt 0:00:02]} 63. Rh8# {[%emt 0:00:07]} 1-0